bitfinex/quotes_SOLUSD_20240918
["timestamp","ask_amount","ask_price","bid_price","bid_amount"]
[1726643458719,0.2556941,131.69,131.68,64.10744434]
[1726643459114,0.2556941,131.69,131.68,51.621964]
[1726643459317,0.2556941,131.69,131.68,40.20507034]
[1726643460093,0.2556941,131.69,131.68,7.5941]
[1726643461921,0.2556941,131.69,131.68,27.5941]
[1726643463218,0.2556941,131.69,131.68,40.07958034]
[1726643463427,0.2556941,131.69,131.68,41.5979776]
[1726643464416,0.2556941,131.69,131.68,40.07958034]
[1726643464654,0.2556941,131.69,131.68,41.59790146]
[1726643465547,0.2556941,131.69,131.68,40.07958034]
[1726643467150,0.2556941,131.69,131.68,27.5941]
[1726643468845,0.2556941,131.69,131.67,7.5945]
[1726643469234,0.2556941,131.69,131.68,7.5941]
[1726643481671,0.2556941,131.69,131.68,20.07958034]
[1726643482355,0.2556941,131.69,131.68,40.07958034]
[1726643492485,0.2556941,131.69,131.68,41.59798226]
[1726643499777,0.2556941,131.69,131.68,40.07958034]
[1726643499957,0.2556941,131.69,131.68,41.59795163]
[1726643500974,0.2556941,131.69,131.68,40.07958034]
[1726643504066,0.2556941,131.69,131.68,27.5941]
[1726643506978,0.2556941,131.69,131.67,7.5945]
[1726643507573,0.2556941,131.69,131.66,7.5951]
[1726643510907,0.2556941,131.69,131.65,7.5957]
[1726643511417,0.2556941,131.69,131.66,7.595]
[1726643516327,0.2556941,131.69,131.68,7.5941]
[1726643522933,0.2556941,131.69,131.68,64.10744434]
[1726643523232,0.2556941,131.69,131.68,65.62564111]
[1726643523604,0.2556941,131.69,131.68,64.10744434]
[1726643525650,0.2556941,131.69,131.68,65.62563996]
[1726643530340,0.2556941,131.69,131.68,53.14015962]
[1726643530546,0.2556941,131.69,131.68,65.62563996]
[1726643531335,9.41e-05,131.69,131.68,68.66795896]
[1726643531848,9.41e-05,131.69,131.68,67.14976334]
[1726643537665,9.41e-05,131.69,131.68,68.66765175]
[1726643538337,9.41e-05,131.69,131.68,54.664283]
[1726643538650,0.2345588,131.71,131.7,27.71849]
[1726643538850,0.2345588,131.71,131.7,65.62408064]
[1726643539244,5.88e-05,131.71,131.7,65.62408064]
[1726643539759,5.88e-05,131.71,131.7,53.1386003]
[1726643539968,5.88e-05,131.71,131.7,65.62408064]
[1726643542901,5.88e-05,131.71,131.7,77.00400228]
[1726643543366,5.88e-05,131.71,131.7,63.00078564]
[1726643543859,5.88e-05,131.71,131.7,75.48626598]
[1726643545464,5.88e-05,131.71,131.7,51.620864]
[1726643545650,5.88e-05,131.71,131.7,44.10634434]
[1726643546972,5.88e-05,131.71,131.7,64.10634434]
[1726643547488,5.88e-05,131.71,131.7,74.00857141]
[1726643547977,5.88e-05,131.71,131.7,75.52630784]
[1726643548150,5.88e-05,131.71,131.7,74.00857141]
[1726643551070,5.88e-05,131.71,131.7,75.52628895]
[1726643554779,5.88e-05,131.71,131.7,105.52628895]
[1726643555164,5.88e-05,131.71,131.7,104.00857141]
[1726643555390,5.88e-05,131.71,131.7,105.52626952]
[1726643556590,5.88e-05,131.71,131.7,75.52626952]
[1726643557769,5.88e-05,131.71,131.7,74.00857141]
[1726643561488,5.88e-05,131.71,131.7,85.3910038]
[1726643561692,5.88e-05,131.71,131.7,105.5262757]
[1726643561876,5.88e-05,131.71,131.7,104.00857141]
[1726643562897,5.88e-05,131.71,131.7,74.00857141]
[1726643563696,5.88e-05,131.71,131.7,85.3921679]
[1726643564200,5.88e-05,131.71,131.7,85.39219026]
[1726643566683,5.88e-05,131.71,131.7,74.00857141]
[1726643567184,5.88e-05,131.71,131.7,85.39310946]
[1726643568176,5.88e-05,131.71,131.7,86.91082929]
[1726643570106,5.88e-05,131.71,131.7,75.52629124]
[1726643570414,5.88e-05,131.71,131.7,96.34576731]
[1726643570901,5.88e-05,131.71,131.7,86.90966331]
[1726643571106,5.88e-05,131.71,131.7,96.34576731]
[1726643573285,5.88e-05,131.71,131.7,75.52629124]
[1726643573792,5.88e-05,131.71,131.7,96.34627928]
[1726643575519,5.88e-05,131.71,131.7,94.82855945]
[1726643575686,5.88e-05,131.71,131.7,84.92633238]
[1726643576384,5.88e-05,131.71,131.7,60.89846838]
[1726643576602,5.88e-05,131.71,131.7,78.41298804]
[1726643576809,5.88e-05,131.71,131.7,7.593]
[1726643577011,5.88e-05,131.71,131.7,28.41612406]
[1726643577316,5.88e-05,131.71,131.7,18.97831477]
[1726643577902,5.88e-05,131.71,131.7,38.97831477]
[1726643578282,5.88e-05,131.71,131.7,27.593]
[1726643578913,5.88e-05,131.71,131.7,29.11113541]
[1726643579687,5.88e-05,131.71,131.7,27.593]
[1726643580103,5.88e-05,131.71,131.7,29.11113466]
[1726643580293,5.88e-05,131.71,131.7,27.593]
[1726643581513,5.88e-05,131.71,131.7,29.11113564]
[1726643582104,5.88e-05,131.71,131.7,27.71849]
[1726643582510,5.88e-05,131.71,131.7,40.20397034]
[1726643583712,5.88e-05,131.71,131.7,27.593]
[1726643586322,5.88e-05,131.71,131.7,7.593]
[1726643586723,16.542,131.7,131.69,7.5934]
[1726643587100,16.542,131.7,131.68,7.5941]
[1726643587416,16.542,131.7,131.69,20.0]
[1726643587601,16.542,131.7,131.69,7.5935]
[1726643587929,16.542,131.7,131.69,27.5935]
[1726643592798,5.88e-05,131.71,131.7,7.593]
[1726643596101,5.88e-05,131.71,131.64,7.55578218]
[1726643596102,5.88e-05,131.71,131.69,20.0]
[1726643596838,5.88e-05,131.71,131.68,7.594]
[1726643597017,5.88e-05,131.71,131.69,20.0]
[1726643598312,5.88e-05,131.71,131.68,7.594]
[1726643599013,5.88e-05,131.71,131.69,7.5934]
[1726643603339,5.88e-05,131.71,131.7,7.593]
[1726643613350,5.88e-05,131.71,131.7,27.71849]
[1726643613637,5.88e-05,131.71,131.7,29.23655375]
[1726643613837,5.88e-05,131.71,131.7,41.72198293]
[1726643614044,5.88e-05,131.71,131.7,40.20397034]
[1726643614218,5.88e-05,131.71,131.7,40.32946034]
[1726643616322,5.88e-05,131.71,131.7,64.10634434]
[1726643617451,5.88e-05,131.71,131.7,65.62424108]
[1726643617747,5.88e-05,131.71,131.7,64.10634434]
[1726643618125,5.88e-05,131.71,131.7,71.74809321]
[1726643619617,5.88e-05,131.71,131.7,70.23024434]
[1726643621224,5.88e-05,131.71,131.7,71.74807032]
[1726643621533,5.88e-05,131.71,131.7,81.65029739]
[1726643622923,5.88e-05,131.71,131.7,89.19713213]
[1726643623627,5.88e-05,131.71,131.7,87.67930615]
[1726643624244,5.88e-05,131.71,131.7,81.65019652]
[1726643624449,5.88e-05,131.71,131.7,80.13247141]
[1726643624653,5.88e-05,131.71,131.7,81.65019633]
[1726643626251,5.88e-05,131.71,131.7,80.13247141]
[1726643626551,5.88e-05,131.71,131.7,70.23024434]
[1726643627733,5.88e-05,131.71,131.7,57.744764]
[1726643627928,5.88e-05,131.71,131.7,7.593]
[1726643629356,5.88e-05,131.71,131.7,51.620864]
[1726643635762,5.88e-05,131.71,131.7,65.62422341]
[1726643637635,5.88e-05,131.71,131.7,65.62421406]
[1726643637842,5.88e-05,131.71,131.7,74.00857141]
[1726643638744,5.88e-05,131.71,131.7,64.10634434]
[1726643641037,5.88e-05,131.71,131.7,74.42620721]
[1726643642339,5.88e-05,131.71,131.7,61.94072687]
[1726643646645,5.88e-05,131.71,131.7,38.16384287]
[1726643646842,5.88e-05,131.71,131.7,27.71849]
[1726643650152,5.88e-05,131.71,131.7,38.03835287]
[1726643650464,5.88e-05,131.71,131.7,50.52383321]
[1726643651283,5.88e-05,131.71,131.7,50.52450427]
[1726643652276,5.88e-05,131.71,131.7,61.47726835]
[1726643652452,5.88e-05,131.71,131.7,95.28186942]
[1726643653061,5.88e-05,131.71,131.7,95.27902447]
[1726643653870,5.88e-05,131.71,131.7,101.30764347]
[1726643654374,5.88e-05,131.71,131.7,101.30783782]
[1726643654556,5.88e-05,131.71,131.7,101.30796427]
[1726643657769,5.88e-05,131.71,131.7,74.00857141]
[1726643657972,5.88e-05,131.71,131.7,84.32738953]
[1726643658181,5.88e-05,131.71,131.7,91.87396984]
[1726643658473,5.88e-05,131.71,131.7,84.32738953]
[1726643658856,5.88e-05,131.71,131.7,71.84190919]
[1726643659076,5.88e-05,131.71,131.7,38.03730812]
[1726643661786,5.88e-05,131.71,131.7,38.03992632]
[1726643663758,5.88e-05,131.71,131.7,37.91443632]
[1726643664683,5.88e-05,131.71,131.7,27.593]
[1726643664885,5.88e-05,131.71,131.7,37.31990095]
[1726643667782,5.88e-05,131.71,131.7,27.593]
[1726643669980,5.88e-05,131.71,131.7,37.32022808]
[1726643670395,5.88e-05,131.71,131.7,17.32022808]
[1726643670986,5.88e-05,131.71,131.7,37.32022808]
[1726643674806,5.88e-05,131.71,131.7,34.00125967]
[1726643675103,5.88e-05,131.71,131.7,45.24677693]
[1726643675279,5.88e-05,131.71,131.7,34.00125967]
[1726643675478,5.88e-05,131.71,131.7,37.32022808]
[1726643675678,5.88e-05,131.71,131.7,43.72815281]
[1726643676487,5.88e-05,131.71,131.7,27.593]
[1726643676696,5.88e-05,131.71,131.7,43.72813948]
[1726643676882,5.88e-05,131.71,131.7,34.0009114]
[1726643677181,5.88e-05,131.71,131.7,43.72813948]
[1726643677382,5.88e-05,131.71,131.7,34.0009114]
[1726643677696,5.88e-05,131.71,131.7,43.72813948]
[1726643678010,5.88e-05,131.71,131.7,34.0009114]
[1726643678188,5.88e-05,131.71,131.7,43.72813948]
[1726643678501,5.88e-05,131.71,131.7,34.0009114]
[1726643678677,5.88e-05,131.71,131.7,43.72813948]
[1726643678872,5.88e-05,131.71,131.7,34.0009114]
[1726643681893,5.88e-05,131.71,131.7,14.0009114]
[1726643682195,5.88e-05,131.71,131.7,7.593]
[1726643682899,5.88e-05,131.71,131.69,7.5935]
[1726643684482,5.88e-05,131.71,131.68,7.5939]
[1726643684683,5.88e-05,131.71,131.67,7.5946]
[1726643684684,15.338,131.7,131.67,7.5946]
[1726643685488,15.338,131.7,131.66,7.5951]
[1726643686181,15.338,131.7,131.61,21.83772696]
[1726643686182,15.338,131.7,131.67,7.5947]
[1726643686706,15.338,131.7,131.61,21.83772696]
[1726643686707,15.338,131.7,131.68,7.594]
[1726643687900,15.338,131.7,131.67,7.5945]
[1726643694901,15.338,131.7,131.62,9.35224662]
[1726643695207,7.5937,131.69,131.65,7.5958]
[1726643695589,30.291174,131.68,131.65,7.5958]
[1726643696712,6.3888,131.68,131.65,7.5958]
[1726643696890,6.3888,131.68,131.66,7.595]
[1726643697305,6.3888,131.68,131.65,7.5958]
[1726643698123,6.3888,131.68,131.66,7.5951]
[1726643699203,6.3888,131.68,131.65,7.5957]
[1726643701408,6.3888,131.68,131.62,1.51923637]
[1726643701716,15.338,131.7,131.67,7.5947]
[1726643701717,23.902374,131.69,131.67,7.5947]
[1726643702033,15.338,131.7,131.66,7.5951]
[1726643706516,15.338,131.7,131.67,7.5945]
[1726643711804,22.9312,131.7,131.66,7.5952]
[1726643712132,22.9312,131.7,131.65,7.5957]
[1726643712330,31.621664,131.69,131.65,7.5957]
[1726643714218,23.902374,131.69,131.65,7.5957]
[1726643717628,15.338,131.7,131.66,7.595]
[1726643718311,15.338,131.7,131.67,7.5946]
[1726643726408,5.88e-05,131.71,131.68,7.5939]
[1726643728932,5.88e-05,131.71,131.67,7.5945]
[1726643729835,5.88e-05,131.71,131.7,7.593]
[1726643730215,5.88e-05,131.71,131.66,20.0]
[1726643731307,5.88e-05,131.71,131.69,7.5935]
[1726643732012,5.88e-05,131.71,131.7,7.593]
[1726643736629,5.88e-05,131.71,131.69,7.5934]
[1726643737809,5.88e-05,131.71,131.7,7.593]
[1726643739706,5.88e-05,131.71,131.69,7.5934]
[1726643740318,5.88e-05,131.71,131.7,7.593]
[1726643760247,5.88e-05,131.71,131.69,7.5934]
[1726643763550,5.88e-05,131.71,131.66,20.0]
[1726643763859,7.5924588,131.71,131.67,7.5945]
[1726643764554,5.88e-05,131.71,131.67,7.5945]
[1726643765646,5.88e-05,131.71,131.68,7.5941]
[1726643767242,5.88e-05,131.71,131.69,7.5935]
[1726643768552,5.88e-05,131.71,131.68,7.594]
[1726643770933,7.5924588,131.71,131.66,13.85524886]
[1726643771328,7.593,131.7,131.66,13.85524886]
[1726643772032,7.593,131.7,131.66,7.5948]
[1726643772440,7.5926588,131.71,131.66,7.5948]
[1726643775343,23.1573588,131.71,131.66,7.5948]
[1726643782445,23.1573588,131.71,131.67,7.5945]
[1726643782655,5.88e-05,131.71,131.65,12.48548034]
[1726643782860,5.88e-05,131.71,131.66,32.48548034]
[1726643783083,5.88e-05,131.71,131.7,7.593]
[1726643784755,5.88e-05,131.71,131.69,7.5934]
[1726643794848,5.88e-05,131.71,131.7,7.593]
[1726643800573,5.88e-05,131.71,131.69,7.5934]
[1726643805655,5.88e-05,131.71,131.7,7.593]
[1726643809955,5.88e-05,131.71,131.69,7.5933]
[1726643816260,5.88e-05,131.71,131.68,7.5939]
[1726643818062,5.88e-05,131.71,131.67,7.5945]
[1726643819581,5.88e-05,131.71,131.68,7.594]
[1726643822083,31.3694428,131.71,131.67,7.5945]
[1726643826295,5.88e-05,131.71,131.68,7.594]
[1726643827880,7.5924588,131.71,131.65,20.0]
[1726643828199,0.12549,131.7,131.66,7.5948]
[1726643831491,23.902374,131.7,131.66,7.5948]
[1726643834304,31.495574,131.7,131.66,7.5948]
[1726643834485,31.495574,131.7,131.62,20.0]
[1726643834486,23.902374,131.7,131.62,20.0]
[1726643834682,0.12549,131.69,131.62,20.0]
[1726643835005,14.0754,131.69,131.64,7.5963]
[1726643835199,31.496474,131.68,131.61,16.6059]
[1726643836209,31.496474,131.68,131.62,20.0]
[1726643836391,31.496474,131.68,131.64,7.5962]
[1726643845517,23.902374,131.66,131.63,7.5969]
[1726643845700,31.497674,131.66,131.61,7.598]
[1726643846212,23.902374,131.66,131.62,7.5975]
[1726643847410,31.497674,131.66,131.62,7.5975]
[1726643847712,31.497674,131.66,131.61,7.598]
[1726643850516,31.497674,131.66,131.62,7.5975]
[1726643851012,23.902374,131.66,131.62,7.5975]
[1726643851313,23.904,131.67,131.63,7.5967]
[1726643852799,0.12549,131.66,131.63,7.5967]
[1726643856414,0.12549,131.66,131.62,7.5974]
[1726643857398,31.623264,131.66,131.62,7.5974]
[1726643859393,7.596,131.65,131.59,20.2556941]
[1726643859594,7.5965,131.64,131.59,27.8545941]
[1726643859796,23.902374,131.63,131.59,27.8545941]
[1726643860018,23.902374,131.63,131.6,7.5985]
[1726643860221,7.596,131.65,131.61,7.598]
[1726643860915,23.902374,131.65,131.61,7.598]
[1726643861123,0.12549,131.65,131.61,7.598]
[1726643862824,37.728684,131.66,131.61,7.598]
[1726643863326,23.776884,131.65,131.61,7.598]
[1726643863628,31.372884,131.65,131.61,7.598]
[1726643864510,16.43469,131.67,131.59,0.2556941]
[1726643864511,16.3092,131.67,131.63,7.5966]
[1726643865411,23.904,131.67,131.63,7.5966]
[1726643868031,16.3092,131.67,131.63,7.5966]
[1726643868539,0.12549,131.68,131.64,7.5961]
[1726643868838,31.496474,131.68,131.64,7.5961]
[1726643869832,7.5949,131.67,131.63,7.597]
[1726643870812,7.5949,131.67,131.6,20.0]
[1726643871943,7.72079,131.66,131.6,20.0]
[1726643872236,23.776884,131.65,131.6,20.0]
[1726643873721,23.776884,131.65,131.61,7.598]
[1726643874103,31.372784,131.65,131.61,7.598]
[1726643875111,31.623264,131.66,131.61,7.598]
[1726643875427,0.12549,131.65,131.61,7.598]
[1726643879738,23.902374,131.64,131.6,7.5987]
[1726643880110,23.902374,131.64,131.61,7.598]
[1726643885330,23.902374,131.64,131.6,7.5986]
[1726643888219,31.498874,131.64,131.6,7.5986]
[1726643891226,23.902374,131.64,131.6,7.5986]
[1726643891548,23.776884,131.64,131.61,7.5979]
[1726643910852,0.12549,131.65,131.6,28.76268034]
[1726643911052,0.12549,131.65,131.64,7.5964]
[1726643912656,23.776884,131.68,131.64,7.5964]
[1726643912887,23.902374,131.67,131.64,7.5964]
[1726643913078,31.497074,131.67,131.63,7.5968]
[1726643914378,7.72099,131.66,131.62,7.5974]
[1726643914592,23.776884,131.65,131.62,7.5974]
[1726643916788,7.72029,131.67,131.63,7.597]
[1726643918793,23.902374,131.67,131.64,7.5963]
[1726643921894,23.902374,131.67,131.63,7.5968]
[1726643922584,31.497274,131.67,131.63,7.5968]
[1726643922778,31.497274,131.67,131.62,7.5974]
[1726643923099,7.5953,131.66,131.62,7.5974]
[1726643923600,23.776884,131.65,131.62,7.5974]
[1726643934111,0.12549,131.67,131.63,7.5968]
[1726643934112,0.25098,131.67,131.63,7.5968]
[1726643934313,23.902374,131.67,131.64,7.5964]
[1726643935699,8.91696068,131.69,131.65,7.5957]
[1726643936100,7.5936,131.69,131.65,7.5957]
[1726643936995,0.12549,131.68,131.65,7.5957]
[1726643937217,23.902374,131.68,131.65,7.5957]
[1726643940731,23.902374,131.68,131.64,7.5962]
[1726643941726,7.71979,131.68,131.64,7.5962]
[1726643941908,23.776884,131.67,131.64,7.5962]
[1726643944117,31.371684,131.67,131.61,20.0]
[1726643946831,31.371684,131.67,131.61,26.26146811]
[1726643947400,31.371684,131.67,131.61,20.0]
[1726643948417,31.371684,131.67,131.61,26.26141821]
[1726643950110,16.076,131.7,131.62,1.51940961]
[1726643950317,20.0,131.7,131.66,7.5949]
[1726643951029,27.5932,131.7,131.66,7.5949]
[1726643951322,7.5932,131.7,131.66,7.5949]
[1726643951697,23.776884,131.69,131.66,7.5949]
[1726643952229,23.776884,131.69,131.65,7.5957]
[1726643958433,0.12549,131.68,131.64,7.5964]
[1726643958612,7.71999,131.68,131.62,6.26011938]
[1726643959224,23.776884,131.67,131.62,6.26011938]
[1726643959409,23.776884,131.67,131.63,7.5965]
[1726643961222,7.84458,131.69,131.64,7.5963]
[1726643961427,23.776884,131.68,131.64,7.5963]
[1726643964221,7.5941,131.68,131.64,7.5963]
[1726643966224,23.902374,131.67,131.64,7.5963]
[1726643968546,23.776884,131.68,131.65,7.5957]
[1726643972760,0.12549,131.68,131.62,12.52476021]
[1726643973052,0.12549,131.68,131.65,7.5957]
[1726643982964,7.71979,131.68,131.64,7.5964]
[1726643988461,23.776884,131.67,131.64,7.5964]
[1726643996072,23.902374,131.68,131.64,7.5964]
[1726643997359,7.71959,131.68,131.64,7.5964]
[1726643997649,23.776884,131.67,131.64,7.5964]
[1726643999563,23.902374,131.68,131.64,7.5964]
[1726644000273,23.902374,131.68,131.65,7.5957]
[1726644002468,31.496874,131.68,131.63,7.5965]
[1726644002651,31.496874,131.68,131.61,26.1307]
[1726644004365,31.496874,131.68,131.64,7.5962]
[1726644007452,31.496874,131.68,131.61,26.1307]
[1726644007453,0.12549,131.68,131.65,7.5958]
[1726644010583,8.9162138,131.7,131.66,7.5951]
[1726644010755,8.9162138,131.7,131.64,15.3613]
[1726644010756,27.5919,131.72,131.68,7.594]
[1726644011457,0.2556941,131.73,131.69,7.5934]
[1726644012670,0.12549,131.72,131.69,7.5934]
[1726644015997,0.25098,131.72,131.68,7.594]
[1726644016196,31.369684,131.71,131.64,21.4488]
[1726644016573,31.369684,131.71,131.67,7.5946]
[1726644018972,7.71869,131.7,131.66,7.5951]
[1726644019185,23.776884,131.69,131.65,7.5957]
[1726644022299,31.370584,131.69,131.65,7.5957]
[1726644022616,0.12549,131.68,131.64,7.5963]
[1726644022796,23.776884,131.67,131.64,7.5963]
[1726644023586,23.776884,131.67,131.63,7.5969]
[1726644023806,0.12549,131.66,131.63,7.5969]
[1726644024005,0.12549,131.66,131.64,7.5964]
[1726644026897,0.12549,131.68,131.64,7.5964]
[1726644027095,23.902374,131.68,131.64,7.5964]
[1726644030918,23.902374,131.68,131.63,7.597]
[1726644031411,23.902374,131.66,131.61,21.2926]
[1726644031609,23.902374,131.66,131.62,7.5975]
[1726644031807,31.497674,131.66,131.62,7.5975]
[1726644032513,23.902374,131.66,131.62,7.5975]
[1726644032698,0.12549,131.65,131.62,7.5975]
[1726644038016,0.12549,131.65,131.59,0.2556941]
[1726644038220,23.902374,131.63,131.6,7.5986]
[1726644038818,23.902374,131.63,131.59,7.8547941]
[1726644040099,23.902374,131.63,131.6,7.5987]
[1726644046910,23.776884,131.64,131.61,7.5981]
[1726644052845,23.776884,131.64,131.6,7.5986]
[1726644053017,23.776884,131.64,131.61,7.5981]
[1726644053744,23.776884,131.64,131.6,7.5985]
[1726644059622,31.373484,131.64,131.6,7.5985]
[1726644059930,0.12549,131.63,131.59,7.8547941]
[1726644060133,7.72259,131.63,131.59,7.8547941]
[1726644061742,7.72259,131.63,131.59,0.2556941]
[1726644061743,7.5978,131.62,131.59,0.2556941]
[1726644062225,23.776884,131.61,131.59,0.2556941]
[1726644064027,7.5978,131.62,131.59,0.2556941]
[1726644065620,23.776884,131.61,131.59,0.2556941]
[1726644066139,31.375084,131.61,131.59,0.2556941]
[1726644068329,7.84968,131.6,131.59,0.2556941]
[1726644068526,31.626564,131.6,131.59,0.2556941]
[1726644071645,7.5983,131.61,131.59,0.2556941]
[1726644075240,23.902374,131.6,131.59,0.2556941]
[1726644075427,31.501074,131.6,131.59,0.2556941]
[1726644081048,7.5996,131.59,131.55,7.8571941]
[1726644081534,23.902374,131.58,131.55,0.2556941]
[1726644082355,31.502274,131.58,131.55,0.2556941]
[1726644083555,23.902374,131.58,131.55,0.2556941]
[1726644095777,7.72439,131.6,131.56,7.6009]
[1726644095976,7.5995,131.59,131.55,7.8571941]
[1726644106999,31.501274,131.6,131.55,7.8571941]
[1726644107283,17.34413234,131.61,131.55,0.2556941]
[1726644107491,13.7758,131.63,131.58,7.5994]
[1726644107694,7.5972,131.63,131.58,7.5994]
[1726644108366,7.5977,131.62,131.58,7.5994]
[1726644108559,7.5977,131.62,131.57,7.6003]
[1726644110373,7.5977,131.62,131.55,6.4933941]
[1726644110374,7.5977,131.62,131.58,7.5998]
[1726644112605,7.5972,131.63,131.59,7.5992]
[1726644112887,7.5971,131.63,131.59,7.5992]
[1726644119602,1.32441078,131.65,131.6,7.5986]
[1726644119977,8.92071078,131.65,131.6,7.5986]
[1726644120182,8.92071078,131.65,131.61,7.598]
[1726644120374,7.5963,131.65,131.61,7.598]
[1726644121094,7.5963,131.65,131.6,7.5985]
[1726644127310,7.597,131.63,131.59,7.5991]
[1726644128495,7.597,131.63,131.58,23.4568]
[1726644129088,7.5976,131.62,131.58,7.5997]
[1726644130813,7.5971,131.63,131.58,7.5997]
[1726644130998,7.5971,131.63,131.59,7.5992]
[1726644131711,7.5965,131.64,131.6,7.5987]
[1726644134608,7.597,131.63,131.59,7.5993]
[1726644134803,7.597,131.63,131.55,21.5275941]
[1726644134804,7.597,131.63,131.58,7.5997]
[1726644135001,7.5976,131.62,131.58,7.5997]
[1726644135516,7.5976,131.62,131.55,21.5275941]
[1726644135681,7.5982,131.61,131.56,20.0]
[1726644137700,7.5982,131.61,131.57,7.6001]
[1726644139408,7.5982,131.61,131.56,13.8583041]
[1726644141216,7.5988,131.6,131.56,13.8583041]
[1726644141519,7.5994,131.59,131.56,6.2574041]
[1726644141905,7.6,131.58,131.56,6.2574041]
[1726644142505,7.6005,131.57,131.56,6.2574041]
[1726644142719,31.628364,131.57,131.56,6.2574041]
[1726644145702,31.628364,131.57,131.55,0.2556941]
[1726644146228,23.776884,131.56,131.55,0.2556941]
[1726644147929,31.628864,131.56,131.55,0.2556941]
[1726644152627,31.79412581,131.56,131.55,0.2556941]
[1726644153711,7.6022,131.54,131.53,0.1976744]
[1726644154015,31.504574,131.54,131.53,0.1976744]
[1726644156030,7.76676181,131.56,131.53,0.1976744]
[1726644156314,23.776884,131.55,131.53,0.1976744]
[1726644162950,0.16526181,131.56,131.53,0.1976744]
[1726644163123,23.94214581,131.56,131.53,0.1976744]
[1726644163820,0.16526181,131.56,131.53,7.8003744]
[1726644172629,0.15918799,131.54,131.53,7.8003744]
[1726644187860,0.15918799,131.54,131.53,30.7161744]
[1726644188074,0.15918799,131.54,131.53,32.23628961]
[1726644188868,0.15918799,131.54,131.53,30.7161744]
[1726644189261,0.15918799,131.54,131.53,52.23628945]
[1726644189567,0.15918799,131.54,131.53,64.72176979]
[1726644189748,0.15918799,131.54,131.53,64.97274979]
[1726644190360,0.15918799,131.54,131.53,88.74963379]
[1726644192863,0.32596215,131.54,131.53,88.74963379]
[1726644194153,0.16677416,131.54,131.53,88.74963379]
[1726644205085,0.16677416,131.54,131.53,87.22951874]
[1726644206087,0.16677416,131.54,131.53,90.27544974]
[1726644212691,0.31445574,131.54,131.53,90.27544974]
[1726644214298,0.14768158,131.54,131.53,90.27544974]
[1726644215091,0.14768158,131.54,131.53,77.7899694]
[1726644215271,0.14768158,131.54,131.53,90.27544974]
[1726644216392,0.14768158,131.54,131.53,59.90897574]
[1726644216597,0.14768158,131.54,131.53,56.73755474]
[1726644217369,0.14768158,131.54,131.53,40.28585474]
[1726644219899,0.14768158,131.54,131.53,27.8003744]
[1726644220195,0.14768158,131.54,131.53,40.28585474]
[1726644221509,0.14768158,131.54,131.53,41.80579039]
[1726644222296,0.14768158,131.54,131.53,65.83365439]
[1726644222599,0.14768158,131.54,131.53,75.18577027]
[1726644226012,0.14768158,131.54,131.53,65.83365439]
[1726644227590,0.14768158,131.54,131.53,95.83365439]
[1726644227791,8.158e-05,131.54,131.53,95.83365439]
[1726644227980,8.158e-05,131.54,131.53,105.18577027]
[1726644229195,0.14222876,131.55,131.54,51.630064]
[1726644229399,0.14222876,131.55,131.54,94.11554434]
[1726644231783,0.14222876,131.55,131.54,64.11554434]
[1726644232790,0.28489588,131.55,131.54,64.11554434]
[1726644234091,0.14266712,131.55,131.54,64.11554434]
[1726644235708,0.14266712,131.55,131.54,65.63517116]
[1726644236107,0.14266712,131.55,131.54,7.6022]
[1726644237214,0.14266712,131.55,131.54,27.6022]
[1726644242425,0.14266712,131.55,131.54,41.60766314]
[1726644242598,0.14266712,131.55,131.54,40.08768034]
[1726644242911,0.14266712,131.55,131.54,27.6022]
[1726644246103,0.14266712,131.55,131.54,41.60766113]
[1726644247814,0.14266712,131.55,131.54,40.08768034]
[1726644248327,0.14266712,131.55,131.54,27.6022]
[1726644250626,0.14266712,131.55,131.54,7.6022]
[1726644254098,30.8479,131.59,131.54,7.6022]
[1726644255398,30.8479,131.59,131.55,7.6015]
[1726644257026,23.776884,131.58,131.54,7.6021]
[1726644259615,23.776884,131.58,131.53,0.1976744]
[1726644259828,15.9815,131.55,131.53,0.1976744]
[1726644260732,29.6363,131.55,131.53,0.1976744]
[1726644264343,31.504574,131.54,131.53,0.1976744]
[1726644264548,31.630064,131.54,131.53,0.1976744]
[1726644273654,7.85438,131.52,131.51,0.2556941]
[1726644273948,31.631264,131.52,131.51,0.2556941]
[1726644274148,51.631264,131.52,131.51,0.2556941]
[1726644275534,23.776884,131.49,131.47,0.2556941]
[1726644284363,23.4299,131.51,131.47,0.2556941]
[1726644285764,23.776884,131.5,131.47,0.2556941]